bitfinex/quotes_SOLUSD_20260211
["timestamp","ask_amount","ask_price","bid_price","bid_amount"]
[1770811421512,43.1199103,81.169,81.146,0.5]
[1770811422230,9.09749817,81.16,81.145,37.96]
[1770811422525,43.1199103,81.169,81.146,0.5]
[1770811422926,43.1199103,81.169,81.143,37.5]
[1770811422927,9.09749817,81.16,81.143,37.5]
[1770811423632,9.09749817,81.16,81.143,38.0]
[1770811423837,43.1199103,81.169,81.144,0.5]
[1770811424737,5.13032502,81.178,81.144,0.5]
[1770811424935,9.09749817,81.17,81.144,0.5]
[1770811425243,9.09749817,81.17,81.146,0.5]
[1770811425917,9.09749817,81.17,81.148,0.5]
[1770811426323,12.31997437,81.169,81.149,38.04]
[1770811426645,12.31997437,81.169,81.15,0.5]
[1770811427011,21.41732126,81.17,81.15,0.5]
[1770811427237,21.41732126,81.17,81.152,0.5]
[1770811427422,54.60957451,81.221,81.153,0.5]
[1770811427423,9.09749817,81.19,81.153,0.5]
[1770811428122,9.09749817,81.19,81.155,0.5]
[1770811429219,12.31693948,81.189,81.155,0.5]
[1770811430040,12.31693948,81.189,81.157,0.5]
[1770811430539,34.3,81.21,81.171,0.5]
[1770811430540,9.09749817,81.21,81.171,0.5]
[1770811430720,9.09749817,81.22,81.181,0.5]
[1770811431038,9.09749817,81.21,81.181,0.5]
[1770811431243,12.31390609,81.209,81.181,0.5]
[1770811432028,12.31390609,81.209,81.183,0.5]
[1770811432232,43.09867132,81.209,81.183,0.5]
[1770811432434,0.47501271,81.189,81.175,30.32]
[1770811433344,12.79195687,81.189,81.175,30.32]
[1770811433532,12.31405772,81.208,81.175,42.63899243]
[1770811434049,5.13032502,81.216,81.18,9.09749817]
[1770811434343,5.13032502,81.216,81.182,0.46671148]
[1770811434729,9.09749817,81.21,81.182,0.46671148]
[1770811434931,3.39365894,81.2,81.183,37.56]
[1770811435139,0.47501271,81.209,81.184,0.46671148]
[1770811435321,12.31390609,81.209,81.184,0.46671148]
[1770811435936,43.09867132,81.209,81.184,0.46671148]
[1770811436539,5.13032502,81.226,81.191,0.46671148]
[1770811436742,3.39365894,81.22,81.191,0.46671148]
[1770811437145,0.47501271,81.219,81.193,0.46671148]
[1770811438219,12.31238995,81.219,81.193,12.78296868]
[1770811438449,12.31238995,81.219,81.194,0.46671148]
[1770811440346,12.78740266,81.219,81.194,0.46671148]
[1770811440646,12.31238995,81.219,81.194,0.46671148]
[1770811442331,3.39365894,81.21,81.194,0.46671148]
[1770811442752,12.31238995,81.219,81.194,0.46671148]
[1770811443727,12.31238995,81.219,81.195,0.46671148]
[1770811445452,12.31238995,81.219,81.196,0.46671148]
[1770811450153,0.47501271,81.209,81.196,37.68]
[1770811450332,12.31238995,81.219,81.197,0.46671148]
[1770811450538,3.39365894,81.23,81.198,0.46671148]
[1770811450744,3.39365894,81.22,81.199,0.46671148]
[1770811451348,3.39365894,81.22,81.201,0.46671148]
[1770811452945,3.39365894,81.24,81.155,18.8]
[1770811452946,0.47501271,81.209,81.155,18.8]
[1770811453151,3.39365894,81.19,81.176,0.46671148]
[1770811453557,3.86867165,81.19,81.17,0.46671148]
[1770811453757,3.39365894,81.19,81.17,0.46671148]
[1770811454745,12.31693948,81.189,81.17,0.46671148]
[1770811455039,3.39365894,81.19,81.17,0.46671148]
[1770811455741,15.71057551,81.19,81.17,0.46671148]
[1770811456537,3.39365894,81.18,81.163,0.46671148]
[1770811456757,15.71209302,81.18,81.163,0.46671148]
[1770811457260,3.39365894,81.17,81.157,38.16671148]
[1770811457563,3.39365894,81.17,81.157,0.46671148]
[1770811457943,0.47501271,81.169,81.139,0.46671148]
[1770811458261,3.39365894,81.16,81.139,0.46671148]
[1770811459663,15.71504695,81.16,81.139,0.46671148]
[1770811460158,5.13032502,81.175,81.141,0.46671148]
[1770811460159,3.39365894,81.17,81.141,0.46671148]
[1770811460348,12.31997437,81.169,81.141,0.46671148]
[1770811460551,46.67869286,81.178,81.143,0.4879017]
[1770811461234,12.31869286,81.178,81.145,0.4879017]
[1770811462488,12.31869286,81.178,81.147,0.4879017]
[1770811465372,0.47388684,81.177,81.149,0.4879017]
[1770811465578,12.31869286,81.178,81.15,0.46031141]
[1770811467279,12.31709119,81.188,81.151,0.46031141]
[1770811467464,12.31709119,81.188,81.153,0.46031141]
[1770811468884,12.81023872,81.188,81.153,0.46031141]
[1770811469583,12.31739462,81.186,81.155,0.46031141]
[1770811471787,12.31739462,81.186,81.157,0.46031141]
[1770811474469,0.49314753,81.185,81.159,0.46031141]
[1770811474869,12.31739462,81.186,81.159,0.46031141]
[1770811475507,0.49314753,81.179,81.146,0.46031141]
[1770811475790,0.49314753,81.169,81.148,0.46031141]
[1770811475989,0.49314753,81.169,81.149,0.46031141]
[1770811476164,0.49314753,81.169,81.15,12.32284709]
[1770811476364,3.39365894,81.17,81.151,0.46031141]
[1770811477590,0.49314753,81.169,81.151,0.46031141]
[1770811477974,12.8131219,81.169,81.151,0.46031141]
[1770811478571,0.49314753,81.169,81.151,0.46031141]
[1770811478986,0.49314753,81.168,81.145,0.46031141]
[1770811480594,0.49314753,81.166,81.142,37.86]
[1770811480789,0.49314753,81.166,81.143,0.46031141]
[1770811482497,0.49314753,81.166,81.143,12.32380942]
[1770811482793,12.32027794,81.167,81.144,0.46031141]
[1770811486602,5.13032502,81.183,81.139,37.96]
[1770811486603,12.31891651,81.176,81.146,0.46031141]
[1770811486908,0.49314753,81.169,81.146,0.46031141]
[1770811487091,0.49314753,81.169,81.143,0.46031141]
[1770811487493,3.39744728,81.16,81.143,0.46031141]
[1770811487887,0.49314753,81.159,81.14,12.32432932]
[1770811488095,3.39744728,81.16,81.121,0.46031141]
[1770811488096,0.49314753,81.149,81.121,0.46031141]
[1770811488293,3.39744728,81.13,81.121,0.46031141]
[1770811488495,3.89059481,81.14,81.121,0.46031141]
[1770811488692,0.49314753,81.139,81.121,0.46031141]
[1770811489990,12.81782893,81.138,81.121,0.46031141]
[1770811490388,0.46407393,81.137,81.1,0.2]
[1770811490607,3.39744728,81.12,81.101,0.47132672]
[1770811491688,0.46407393,81.119,81.1,0.2]
[1770811491882,3.39744728,81.11,81.08,0.2]
[1770811492104,0.46407393,81.099,81.08,0.2]
[1770811492685,34.84407393,81.105,81.08,0.2]
[1770811492891,34.84407393,81.105,81.083,0.47132672]
[1770811493211,3.39744728,81.1,81.083,0.47132672]
[1770811493717,0.46407393,81.099,81.08,0.2]
[1770811494807,34.42,81.104,81.082,0.47132672]
[1770811495612,3.40313397,81.12,81.082,0.47132672]
[1770811496408,12.32756814,81.119,81.084,0.47132672]
[1770811496792,12.79164207,81.119,81.084,0.47132672]
[1770811497507,0.46407393,81.118,81.086,0.47132672]
[1770811497718,0.46407393,81.109,81.086,0.47132672]
[1770811499613,0.46407393,81.109,81.088,0.47132672]
[1770811500303,34.44,81.126,81.091,0.47132672]
[1770811500613,34.44,81.126,81.087,43.16351572]
[1770811500614,12.32457596,81.139,81.101,0.47132672]
[1770811500802,12.32457596,81.139,81.111,0.47132672]
[1770811501201,3.40313397,81.15,81.092,38.08]
[1770811501202,3.8672079,81.17,81.131,0.47132672]
[1770811501513,49.25762286,81.206,81.092,38.08]
[1770811501514,3.40313397,81.18,81.151,0.47132672]
[1770811501716,46.79754634,81.185,81.153,0.47132672]
[1770811501916,3.40313397,81.18,81.153,0.47132672]
[1770811502099,47.26162027,81.185,81.137,12.32479413]
[1770811502100,0.46407393,81.169,81.137,12.32479413]
[1770811502292,0.46407393,81.169,81.14,12.32429421]
[1770811502511,0.46407393,81.169,81.141,0.47132672]
[1770811502794,0.46407393,81.179,81.153,0.47132672]
[1770811503821,0.46407393,81.177,81.153,0.47132672]
[1770811504215,3.40313397,81.17,81.145,0.47132672]
[1770811504517,3.40313397,81.17,81.148,0.47132672]
[1770811504705,0.46407393,81.177,81.148,0.47132672]
[1770811504907,0.46407393,81.177,81.151,0.47132672]
[1770811507322,0.46407393,81.175,81.151,0.47132672]
[1770811512021,12.31921551,81.174,81.151,0.47132672]
[1770811512228,12.78328944,81.174,81.151,0.47132672]
[1770811513622,0.46407393,81.173,81.151,0.47132672]
[1770811514012,12.31869326,81.178,81.16,3.40313397]
[1770811514211,3.40313397,81.2,81.16,3.40313397]
[1770811514212,0.46407393,81.208,81.171,0.47132672]
[1770811514410,12.31208677,81.221,81.191,0.47132672]
[1770811514614,35.06407393,81.22,81.2,3.40313397]
[1770811514810,0.46407393,81.219,81.191,0.47132672]
[1770811515426,12.31208677,81.221,81.201,0.47132672]
[1770811516110,11.81208677,81.221,81.201,0.47132672]
[1770811523940,47.09131899,81.227,81.211,0.4903596]
[1770811529624,47.55218024,81.227,81.198,0.47663738]
[1770811531321,47.55218024,81.227,81.191,0.47663738]
[1770811531533,47.55218024,81.227,81.193,0.47663738]
[1770811531745,47.09131899,81.227,81.193,0.47663738]
[1770811532245,47.09131899,81.227,81.192,18.8]
[1770811532418,47.09131899,81.227,81.193,0.47663738]
[1770811532738,0.46086125,81.224,81.194,0.47663738]
[1770811534238,12.3117836,81.223,81.195,12.31602931]
[1770811534429,0.46086125,81.219,81.194,12.3160846]
[1770811534636,47.09122549,81.227,81.195,0.47663738]
[1770811534829,34.78,81.227,81.195,0.47663738]
[1770811535035,34.78,81.227,81.201,0.47663738]
[1770811535334,47.27041953,81.232,81.201,0.47663738]
[1770811536342,47.27041953,81.232,81.203,0.47663738]
[1770811537842,47.27041953,81.232,81.19,38.02]
[1770811537843,12.30844975,81.245,81.211,0.47663738]
[1770811538937,30.76768997,81.255,81.204,43.10132505]
[1770811538938,0.46086125,81.258,81.221,0.47663738]
[1770811539246,12.30671843,81.257,81.221,0.47663738]
[1770811539745,3.50313397,81.26,81.243,0.47663738]
[1770811539746,0.1,81.26,81.243,0.47663738]
[1770811540126,6.43185865,81.277,81.251,0.47663738]
[1770811540541,18.73557025,81.277,81.251,0.47663738]
[1770811540737,0.56086125,81.27,81.251,0.47663738]
[1770811544050,0.46086125,81.269,81.234,0.47663738]
[1770811544426,0.46086125,81.269,81.244,12.30852463]
[1770811544653,0.46086125,81.269,81.236,12.30971167]
[1770811544959,0.46086125,81.259,81.236,12.30971167]
[1770811545659,0.46086125,81.249,81.226,12.3112098]
[1770811546031,0.46086125,81.249,81.212,30.78333837]
[1770811546232,0.46086125,81.249,81.213,38.06]
[1770811546746,0.46086125,81.249,81.214,0.47663738]
[1770811547124,0.46086125,81.249,81.216,0.47663738]
[1770811547325,0.46086125,81.249,81.218,0.47663738]
[1770811547527,0.46086125,81.249,81.215,43.09548727]
[1770811547528,0.46086125,81.239,81.216,0.47663738]
[1770811547946,0.46086125,81.229,81.196,0.47663738]
[1770811548660,0.46086125,81.229,81.19,41.46866297]
[1770811548661,0.46086125,81.229,81.207,12.79078517]
[1770811549134,0.46086125,81.229,81.207,12.31414779]
[1770811549950,0.46086125,81.229,81.203,0.47663738]
[1770811552334,0.46086125,81.229,81.205,0.48521629]
[1770811553655,0.48740848,81.227,81.204,12.3146643]
[1770811554153,0.48740848,81.227,81.205,0.48521629]
[1770811554953,0.48740848,81.227,81.206,12.314361]
[1770811555455,0.48740848,81.227,81.207,0.48521629]
[1770811557244,0.48740848,81.227,81.202,12.31488]
[1770811557454,0.48740848,81.226,81.205,12.31443687]
[1770811557758,0.48740848,81.226,81.206,0.48521629]
[1770811558056,0.48740848,81.226,81.208,12.79927401]
[1770811558956,0.48740848,81.226,81.204,12.31452796]
[1770811559943,0.48740848,81.226,81.207,12.31419655]
[1770811560461,3.38866297,81.22,81.201,17.82020562]
[1770811560652,3.38866297,81.22,81.141,49.29673224]
[1770811560653,0.48740848,81.209,81.178,38.26]
[1770811560858,0.48740848,81.209,81.18,0.48521629]
[1770811562662,0.48740848,81.209,81.182,0.48521629]
[1770811563777,0.48740848,81.239,81.201,0.48521629]
[1770811564164,0.48740848,81.239,81.203,0.48521629]
[1770811564362,0.48740848,81.237,81.205,0.48521629]
[1770811564570,0.48740848,81.229,81.205,0.48521629]
[1770811566546,12.31102575,81.228,81.206,12.314361]
[1770811566762,0.48740848,81.227,81.206,12.314361]
[1770811568267,0.48740848,81.227,81.2,38.3]
[1770811568463,0.48740848,81.225,81.2,38.3]
[1770811571158,0.48740848,81.219,81.2,38.3]
[1770811572265,0.48740848,81.219,81.197,17.12020562]
[1770811573269,3.39194317,81.24,81.188,17.12020562]
[1770811573270,0.48740848,81.209,81.188,17.12020562]
[1770811573774,0.48740848,81.209,81.189,0.48521629]
[1770811573963,0.48740848,81.217,81.194,0.48521629]
[1770811575652,3.39194317,81.22,81.188,17.12020562]
[1770811575653,0.48740848,81.215,81.188,17.12020562]
[1770811577278,3.39194317,81.22,81.188,17.12020562]
[1770811577279,0.48740848,81.213,81.188,17.12020562]
[1770811577671,0.48740848,81.209,81.188,17.12020562]
[1770811581480,0.48092683,81.199,81.158,0.4534319]
[1770811581685,0.45333228,81.179,81.158,0.4534319]
[1770811583187,0.45333228,81.179,81.159,0.4534319]
[1770811583380,0.45333228,81.179,81.161,0.4534319]
[1770811583967,0.45333228,81.177,81.161,0.4534319]
[1770811585180,0.45333228,81.177,81.156,0.4534319]
[1770811585386,3.39194317,81.18,81.15,0.4534319]
[1770811585387,0.45333228,81.175,81.15,0.4534319]
[1770811585562,12.31891199,81.176,81.15,0.4534319]
[1770811585563,3.39194317,81.17,81.15,0.4534319]
[1770811585763,12.31891199,81.176,81.15,0.4534319]
[1770811586079,0.47832188,81.175,81.15,0.4534319]
[1770811586687,3.87026505,81.17,81.15,0.4534319]
[1770811586864,0.47832188,81.169,81.15,0.4534319]
[1770811589885,12.79751541,81.175,81.152,0.45579428]
[1770811590389,0.47832188,81.174,81.152,0.45579428]
[1770811590986,0.47832188,81.181,81.152,0.45579428]
[1770811591892,0.47832188,81.181,81.154,0.45579428]
[1770811592388,30.790867,81.193,81.153,16.72240336]
[1770811592389,0.47832188,81.198,81.161,0.45579428]
[1770811593384,12.3154226,81.199,81.161,0.45579428]
[1770811593385,0.47832188,81.189,81.161,0.45579428]
[1770811595489,0.47832188,81.205,81.171,0.45579428]
[1770811595693,0.47832188,81.219,81.181,0.45579428]
[1770811596196,0.47832188,81.219,81.182,0.45579428]
[1770811596790,0.47832188,81.218,81.184,0.45579428]
[1770811598379,0.47832188,81.216,81.186,0.45579428]
[1770811600206,12.31269315,81.217,81.186,0.45579428]
[1770811600207,0.47832188,81.209,81.186,0.45579428]
[1770811601072,0.47832188,81.207,81.186,0.45579428]
[1770811601696,0.47832188,81.199,81.175,12.31906023]
[1770811601885,0.47832188,81.199,81.175,12.77485451]
[1770811602873,12.31557427,81.198,81.175,12.77485451]
[1770811603073,0.47832188,81.197,81.175,12.77485451]
[1770811604192,0.47832188,81.195,81.175,12.77485451]
[1770811604399,0.47832188,81.195,81.175,0.45579428]
[1770811605776,35.42,81.204,81.176,12.31891199]
[1770811606099,12.31481595,81.203,81.177,0.45579428]
[1770811606316,0.47832188,81.202,81.177,0.45579428]
[1770811606487,0.47832188,81.202,81.179,0.45579428]
[1770811607292,0.47832188,81.199,81.179,0.45579428]
[1770811607978,0.47832188,81.199,81.167,0.45579428]
[1770811608380,0.47832188,81.197,81.169,0.45579428]
[1770811609099,0.47832188,81.197,81.171,0.45579428]
[1770811610103,0.47832188,81.195,81.171,0.45579428]
[1770811612484,12.84174386,81.194,81.171,0.45579428]
[1770811613404,0.52556287,81.2,81.172,0.49816116]
[1770811614200,0.52556287,81.198,81.172,0.49816116]
[1770811614398,0.52556287,81.198,81.174,0.49816116]
[1770811614604,0.52556287,81.196,81.174,0.49816116]
[1770811618087,0.52556287,81.194,81.169,0.49816116]
[1770811618808,0.52556287,81.189,81.169,0.49816116]
[1770811620791,0.52556287,81.187,81.16,38.72]
[1770811621112,0.52556287,81.179,81.157,12.81991207]
[1770811622383,0.52556287,81.179,81.158,0.49816116]
[1770811622795,0.52556287,81.186,81.161,0.49816116]
[1770811623090,0.52556287,81.186,81.153,30.80570715]
[1770811623091,3.39511819,81.17,81.117,0.55807094]
[1770811623299,35.6,81.169,81.131,0.55807094]
[1770811624204,3.39511819,81.17,81.131,12.32574478]
[1770811624507,12.31754634,81.185,81.151,0.55807094]
[1770811624710,12.31682566,81.19,81.161,0.55807094]
[1770811624911,12.19938453,81.194,81.163,0.55807094]
[1770811625482,35.58,81.197,81.163,0.55807094]
[1770811625687,35.58,81.197,81.171,0.55807094]
[1770811626692,12.31536564,81.2,81.171,0.55807094]
[1770811626887,5.13032502,81.206,81.172,12.31951904]
[1770811627102,12.31405772,81.208,81.173,0.55807094]
[1770811627408,3.39511819,81.2,81.173,0.55807094]
[1770811629317,12.33665534,81.199,81.173,0.55807094]
[1770811629503,3.39511819,81.19,81.173,0.55807094]
[1770811629908,0.02123274,81.198,81.173,0.55807094]
[1770811630115,3.39511819,81.19,81.166,0.55807094]
[1770811631110,12.31845674,81.179,81.159,39.43807094]
[1770811631338,12.31845674,81.179,81.159,0.55807094]
[1770811631811,12.3172429,81.187,81.16,12.32134056]
[1770811632001,12.3172429,81.187,81.161,0.55807094]
[1770811632203,3.39511819,81.18,81.161,0.55807094]
[1770811632403,12.3172429,81.187,81.161,0.55807094]
[1770811633214,3.39511819,81.18,81.161,0.55807094]
[1770811633899,3.39511819,81.19,81.161,0.55807094]
[1770811634098,12.31693948,81.189,81.162,12.32103693]
[1770811634311,12.31693948,81.189,81.163,0.55807094]
[1770811635917,12.31693948,81.189,81.165,0.55807094]
[1770811636312,35.64,81.192,81.165,0.55807094]
[1770811636494,3.39511819,81.19,81.165,0.55807094]
[1770811637118,12.31663608,81.191,81.165,0.55807094]
[1770811638125,3.39511819,81.19,81.165,0.55807094]
[1770811638701,12.31663608,81.191,81.165,0.55807094]
[1770811639004,12.31663608,81.191,81.167,0.55807094]
[1770811640520,3.39511819,81.21,81.171,0.55807094]
[1770811641720,3.39511819,81.2,81.171,0.55807094]
[1770811642501,12.3154226,81.199,81.171,0.55807094]
[1770811643321,12.3154226,81.199,81.172,12.31951904]
[1770811643526,12.3154226,81.199,81.173,0.55807094]
[1770811644823,12.31451265,81.205,81.175,0.55807094]
[1770811644999,3.39511819,81.2,81.175,0.55807094]
[1770811646022,12.31451265,81.205,81.175,0.55807094]
[1770811646221,12.31451265,81.205,81.177,0.55807094]
[1770811647822,3.39511819,81.2,81.177,0.55807094]
[1770811648501,43.10079428,81.205,81.177,0.55807094]
[1770811649220,30.78628163,81.205,81.177,12.87675266]
[1770811649407,30.78628163,81.205,81.178,0.55807094]
[1770811650228,48.13390609,81.209,81.178,0.55807094]
[1770811651630,3.39511819,81.2,81.178,0.55807094]
[1770811652620,3.39511819,81.19,81.139,0.55807094]
[1770811652816,3.39511819,81.18,81.158,0.55807094]
[1770811653013,35.86,81.189,81.158,0.55807094]
[1770811653902,12.31693948,81.189,81.158,0.55807094]
[1770811654631,3.39511819,81.18,81.158,0.55807094]
[1770811656114,12.31845674,81.179,81.158,0.55807094]
[1770811659221,35.9,81.189,81.16,0.55807094]
[1770811660117,12.31693948,81.189,81.16,0.55807094]
[1770811662633,12.31639613,81.193,81.161,12.32118874]
[1770811662834,12.31639613,81.193,81.162,0.55807094]
[1770811663336,3.39511819,81.2,81.161,12.32118874]
[1770811663337,15.71049033,81.2,81.164,0.55807094]
[1770811663537,15.71049033,81.2,81.166,0.55807094]
[1770811664936,12.31537214,81.2,81.17,3.39451934]
[1770811665139,12.31537214,81.2,81.171,0.55807094]
[1770811666728,0.1,81.28,81.193,5.13032502]
[1770811666948,0.1,81.28,81.172,303.06016849]
[1770811666949,0.1,81.28,81.251,0.55807094]
[1770811667141,3.49451934,81.28,81.245,0.55807094]
[1770811667349,0.1,81.28,81.238,0.55807094]
[1770811667648,3.39451934,81.26,81.238,0.55807094]
[1770811667851,3.49451934,81.28,81.238,0.55807094]
[1770811668149,12.30393864,81.275,81.238,0.55807094]
[1770811668334,0.1,81.28,81.251,0.55807094]
[1770811668934,0.1,81.28,81.253,0.55807094]
[1770811669943,0.1,81.28,81.246,0.55807094]
[1770811669944,3.39451934,81.26,81.246,0.55807094]
[1770811670131,3.39451934,81.26,81.22,3.39451934]
[1770811670132,3.39451934,81.26,81.236,0.55807094]
[1770811670332,3.39451934,81.26,81.239,12.86732255]
[1770811670724,3.39451934,81.26,81.239,0.55807094]
[1770811670941,3.39451934,81.26,81.231,0.55807094]
[1770811671336,3.39451934,81.27,81.231,0.55807094]
[1770811672329,3.39451934,81.27,81.233,0.55807094]
[1770811672929,3.39451934,81.27,81.235,0.55807094]
[1770811673134,3.49451934,81.28,81.237,0.55807094]
[1770811673345,0.1,81.28,81.251,0.55807094]
[1770811673543,0.1,81.29,81.262,0.52018353]
[1770811674245,0.1,81.29,81.271,0.52018353]
[1770811674634,3.49451934,81.31,81.263,39.48]
[1770811674635,0.1,81.33,81.281,0.52018353]
[1770811674951,3.49451934,81.33,81.293,0.52018353]
[1770811675155,0.1,81.33,81.293,0.52018353]
[1770811675339,3.39451934,81.32,81.293,0.52018353]
[1770811675850,3.39451934,81.32,81.292,12.30133346]
[1770811675851,0.26095701,81.309,81.282,39.46]
[1770811676257,0.26095701,81.309,81.277,0.52018353]
[1770811676447,3.39451934,81.31,81.281,0.52018353]
[1770811676653,0.1,81.33,81.268,70.22228665]
[1770811676654,0.1,81.36,81.28,3.39451934]
[1770811676857,0.49658576,81.382,81.331,0.52018353]
[1770811677048,0.1,81.42,81.361,0.52018353]
[1770811677049,0.49658576,81.399,81.361,0.52018353]
[1770811677245,0.49658576,81.399,81.371,0.52018353]
[1770811677546,0.1,81.42,81.391,0.52018353]
[1770811677849,0.1,81.44,81.412,0.52018353]
[1770811678159,3.49451934,81.46,81.4,3.39451934]
[1770811678160,0.1,81.46,81.407,5.13032502]
[1770811678355,0.1,81.46,81.41,3.37358607]
[1770811678548,0.1,81.46,81.404,0.52018353]
[1770811678754,3.47358607,81.45,81.41,3.37358607]
[1770811679061,9.03922779,81.44,81.412,12.28320149]
[1770811679358,9.13922779,81.45,81.414,0.52018353]
[1770811679553,0.49658576,81.449,81.414,0.52018353]
[1770811679861,0.1,81.45,81.429,0.52018353]
[1770811680159,0.49658576,81.449,81.413,0.52018353]
[1770811680536,0.1,81.45,81.431,0.52018353]
[1770811680937,0.49658576,81.439,81.414,12.28289974]
[1770811681150,0.49658576,81.429,81.396,0.52018353]
[1770811681373,0.49658576,81.419,81.381,0.52018353]
[1770811681554,0.49658576,81.419,81.367,5.13032502]
[1770811681555,0.49658576,81.429,81.39,9.03922779]
[1770811681862,12.27777232,81.448,81.353,54.52925447]
[1770811681863,0.49658576,81.409,81.38,0.52018353]
[1770811682062,0.49658576,81.441,81.401,0.52018353]
[1770811682237,0.49658576,81.439,81.401,0.52018353]
[1770811682635,9.53581355,81.43,81.401,0.52018353]
[1770811682942,0.49658576,81.429,81.401,0.52018353]
[1770811683140,0.49658576,81.419,81.383,0.52018353]
[1770811683352,0.49658576,81.419,81.381,0.52018353]
[1770811684038,0.49658576,81.419,81.383,12.28756655]
[1770811684654,0.49658576,81.419,81.382,12.28769657]
[1770811685061,0.49658576,81.417,81.382,12.28769657]
[1770811685466,0.49658576,81.417,81.391,0.52018353]
[1770811685761,0.49658576,81.417,81.383,0.52018353]
[1770811686162,0.49658576,81.409,81.374,0.52018353]
[1770811686350,0.49658576,81.409,81.381,12.28777236]
[1770811686546,0.49658576,81.421,81.382,0.52018353]
[1770811686861,9.03922779,81.42,81.389,0.52018353]
[1770811687062,9.53581355,81.42,81.389,0.52018353]
[1770811687272,9.53581355,81.42,81.39,12.80670521]
[1770811687273,0.49658576,81.419,81.39,12.80670521]
[1770811687579,0.49658576,81.419,81.371,0.52018353]
[1770811687968,0.49658576,81.419,81.362,39.62]
[1770811687969,12.28084501,81.428,81.391,0.52018353]
[1770811688172,0.49658576,81.449,81.391,0.52018353]
[1770811688356,0.49658576,81.449,81.4,9.03922779]
[1770811688559,0.49658576,81.449,81.401,0.52018353]
[1770811688862,9.03922779,81.42,81.391,0.52018353]
[1770811689059,0.49658576,81.419,81.391,0.52018353]
[1770811689278,0.49658576,81.399,81.368,0.52018353]
[1770811689576,0.49658576,81.399,81.364,12.29030763]
[1770811689751,0.49658576,81.399,81.338,0.52018353]
[1770811689955,251.78707409,81.418,81.327,12.29594282]
[1770811689956,9.03922779,81.35,81.327,12.29594282]
[1770811690263,0.49658576,81.351,81.329,12.29573706]
[1770811690458,0.49658576,81.394,81.331,0.52018353]
[1770811690663,9.03922779,81.36,81.331,0.52018353]
[1770811691175,0.49658576,81.358,81.331,0.52018353]
[1770811691561,9.03922779,81.35,81.331,0.52018353]
[1770811692277,9.03922779,81.35,81.328,12.29585244]
[1770811692479,0.49658576,81.358,81.328,12.81603597]
[1770811693054,9.03922779,81.35,81.328,12.81603597]
[1770811693366,9.03922779,81.35,81.328,0.52018353]
[1770811694071,9.03922779,81.35,81.329,12.29573706]
[1770811694789,0.49658576,81.358,81.33,0.52018353]
[1770811695082,9.03922779,81.35,81.33,0.52018353]
[1770811696881,0.49658576,81.358,81.331,12.2954347]
[1770811697270,0.49658576,81.358,81.332,0.52018353]
[1770811697475,9.03922779,81.38,81.332,0.52018353]
[1770811697676,9.03922779,81.37,81.332,0.52018353]
[1770811697877,9.53581355,81.38,81.332,0.52018353]
[1770811698082,0.49658576,81.379,81.332,0.52018353]
[1770811698296,9.03922779,81.37,81.332,0.52018353]
[1770811698467,9.53581355,81.37,81.332,0.52018353]
[1770811698660,0.49658576,81.369,81.332,0.52018353]
[1770811699172,9.03922779,81.36,81.334,0.52018353]
[1770811699377,0.49658576,81.359,81.334,0.52018353]
[1770811700075,41.37032502,81.402,81.334,0.52018353]
[1770811700076,0.49658576,81.367,81.334,0.52018353]
[1770811700865,0.58061869,81.375,81.334,0.52018353]
[1770811701067,9.03922779,81.37,81.334,0.52018353]
[1770811701587,9.03922779,81.37,81.336,0.57449767]
[1770811701762,9.03922779,81.37,81.335,43.03190507]
[1770811701763,0.58061869,81.39,81.341,0.57449767]
[1770811701965,9.03922779,81.38,81.341,0.57449767]
[1770811702171,9.03922779,81.37,81.341,0.57449767]
[1770811702370,9.03922779,81.36,81.335,12.29483002]
[1770811702574,9.03922779,81.35,81.335,12.29483002]
[1770811702871,9.03922779,81.36,81.336,0.57449767]
[1770811703372,9.03922779,81.37,81.336,0.57449767]
[1770811703576,9.03922779,81.37,81.338,0.57449767]
[1770811703776,0.58061869,81.377,81.338,0.57449767]
[1770811703981,0.58061869,81.377,81.34,0.57449767]
[1770811704176,0.58061869,81.396,81.341,0.57449767]
[1770811704365,0.58061869,81.389,81.341,0.57449767]
[1770811704572,9.03922779,81.38,81.341,0.57449767]
[1770811705470,0.58061869,81.389,81.342,43.0282019]
[1770811705672,0.58061869,81.389,81.343,0.5659665]
[1770811705889,0.58061869,81.389,81.342,43.0282019]
[1770811705890,9.03922779,81.38,81.345,0.5659665]
[1770811706667,0.58061869,81.389,81.345,0.5659665]
[1770811706888,9.03922779,81.39,81.346,39.6]
[1770811707079,0.57278897,81.389,81.347,0.5659665]
[1770811707987,9.03922779,81.37,81.349,0.5659665]
[1770811708195,0.57278897,81.379,81.349,0.5659665]
[1770811709081,9.03922779,81.37,81.349,0.5659665]
[1770811709296,0.57278897,81.369,81.346,39.6]
[1770811710376,0.57278897,81.369,81.347,12.29301633]
[1770811710886,0.57278897,81.359,81.341,39.62]
[1770811711093,9.03922779,81.35,81.341,39.62]
[1770811711293,9.03922779,81.35,81.315,0.5659665]